bitfinex-derivatives/quotes_SOLF0:USTF0_20220104
["timestamp","ask_amount","ask_price","bid_price","bid_amount"]
[1641294336685,27.66479,170.49,170.45,33.08734312]
[1641294337185,27.66479,170.49,170.42,5.86338317]
[1641294338187,10.41804051,170.48,170.42,5.86338317]
[1641294338788,10.41804051,170.48,170.42,8.86338317]
[1641294338987,10.41804051,170.48,170.42,5.86338317]
[1641294339287,10.41804051,170.48,170.43,3.0]
[1641294339589,10.41804051,170.48,170.42,5.86338317]
[1641294339787,10.41804051,170.52,170.42,5.86338317]
[1641294339988,73.23084051,170.52,170.42,5.86338317]
[1641294340388,62.8128,170.52,170.42,5.86338317]
[1641294340590,65.8128,170.52,170.42,13.21674992]
[1641294340787,62.8128,170.52,170.42,13.21674992]
[1641294340988,65.8128,170.52,170.42,13.21674992]
[1641294341189,62.8128,170.52,170.42,13.21674992]
[1641294341893,62.8128,170.52,170.42,19.21674992]
[1641294342091,62.8128,170.52,170.46,5.86200832]
[1641294342292,67.877,170.6,170.46,11.31700832]
[1641294342490,27.66479,170.58,170.51,5.86029067]
[1641294342691,27.66479,170.58,170.51,11.35329067]
[1641294342893,27.66479,170.58,170.51,5.493]
[1641294343292,3.0,170.52,170.51,5.493]
[1641294343691,3.0,170.52,170.46,5.86200832]
[1641294343893,3.0,170.51,170.46,5.86200832]
[1641294344291,8.252,170.52,170.46,5.86200832]
[1641294344491,27.66479,170.5,170.46,5.86200832]
[1641294345192,9.19267128,170.49,170.46,8.86200832]
[1641294345793,9.19267128,170.49,170.48,5.86097761]
[1641294346193,12.19267128,170.57,170.48,5.86097761]
[1641294346399,3.0,170.54,170.48,5.86097761]
[1641294346593,3.0,170.54,170.46,3.0]
[1641294346893,3.0,170.53,170.45,27.66479]
[1641294347094,3.0,170.5,170.44,5.86252382]
[1641294347393,7.966,170.5,170.44,5.86252382]
[1641294347593,4.966,170.5,170.44,5.86252382]
[1641294348095,7.966,170.5,170.44,5.86252382]
[1641294348297,3.0,170.49,170.44,5.86252382]
[1641294348494,12.41125441,170.46,170.44,5.86252382]
[1641294349298,20.74425441,170.46,170.42,6.0]
[1641294349498,3.0,170.45,170.42,6.0]
[1641294349899,20.74425441,170.46,170.42,6.0]
[1641294350100,12.41125441,170.44,170.42,6.0]
[1641294350499,40.07604441,170.44,170.42,6.0]
[1641294350706,12.41125441,170.44,170.42,6.0]
[1641294350899,12.41125441,170.43,170.42,6.0]
[1641294353503,12.41125441,170.44,170.42,6.0]
[1641294354403,12.41125441,170.45,170.42,6.0]
[1641294355206,12.41125441,170.44,170.42,6.0]
[1641294355805,9.19267128,170.46,170.42,6.0]
[1641294356005,9.19267128,170.46,170.4,5.24361725]
[1641294356207,9.19267128,170.46,170.39,4.1377835]
[1641294356208,3.0,170.45,170.39,4.1377835]
[1641294356407,12.41362691,170.43,170.38,27.66479]
[1641294356609,12.41362691,170.43,170.35,12.41125441]
[1641294357109,12.41362691,170.43,170.39,5.86441473]
[1641294357307,4.13805934,170.4,170.39,5.86441473]
[1641294358110,12.41362691,170.44,170.39,5.86441473]
[1641294358311,12.41362691,170.44,170.39,16.27280896]
[1641294358511,12.41362691,170.44,170.43,27.66479]
[1641294359111,12.41362691,170.44,170.39,7.18780896]
[1641294359710,12.41362691,170.48,170.43,1.32339423]
[1641294359909,15.41362691,170.48,170.43,1.32339423]
[1641294360110,3.0,170.47,170.43,1.32339423]
[1641294360309,15.41362691,170.48,170.43,1.32339423]
[1641294360509,27.66479,170.45,170.43,1.32339423]
[1641294360710,27.66479,170.45,170.4,1.32339423]
[1641294361510,3.0,170.42,170.4,1.32339423]
[1641294362009,2.81466936,170.44,170.43,3.0]
[1641294362709,12.9813158,170.44,170.39,8.86441473]
[1641294362909,12.9813158,170.44,170.39,5.86441473]
[1641294363310,1.7533158,170.44,170.43,6.0]
[1641294363510,33.10226796,170.47,170.43,15.85926056]
[1641294363511,13.85558376,170.47,170.43,15.85926056]
[1641294363710,13.85558376,170.47,170.46,6.0]
[1641294363910,13.21558376,170.47,170.46,6.0]
[1641294364314,80.50892791,170.57,170.46,6.0]
[1641294364512,80.50892791,170.57,170.51,27.66479]
[1641294364712,62.4573,170.61,170.51,30.66479]
[1641294364912,27.66479,170.62,170.56,3.0]
[1641294365111,27.66479,170.65,170.57,3.0]
[1641294365312,27.66479,170.65,170.55,3.0]
[1641294365512,27.66479,170.65,170.52,3.0]
[1641294365712,3.30805526,170.64,170.57,12.40506366]
[1641294366113,3.30805526,170.64,170.57,15.40506366]
[1641294366613,27.66479,170.65,170.58,0.66156582]
[1641294367021,27.66479,170.65,170.58,3.0]
[1641294367214,27.66479,170.65,170.57,3.0]
[1641294367413,27.66479,170.65,170.59,0.66156582]
[1641294368012,3.30781066,170.64,170.59,0.66156582]
[1641294368211,8.14781066,170.64,170.59,0.66156582]
[1641294368412,4.84,170.64,170.59,0.66156582]
[1641294369312,4.84,170.64,170.58,0.66156582]
[1641294370612,27.66479,170.65,170.56,12.40506366]
[1641294370613,27.66479,170.65,170.57,0.66156582]
[1641294370814,27.66479,170.65,170.57,13.06662948]
[1641294371115,3.30829979,170.64,170.57,13.06662948]
[1641294371613,3.30829979,170.64,170.58,0.66156582]
[1641294372012,3.30829979,170.64,170.55,3.0]
[1641294372013,3.30829979,170.64,170.55,0.66156582]
[1641294372513,3.30829979,170.64,170.59,3.0]
[1641294372714,3.30829979,170.64,170.61,5.85668687]
[1641294372915,63.11340253,170.66,170.61,5.85668687]
[1641294373114,63.11340253,170.66,170.61,8.85668687]
[1641294373318,63.11340253,170.66,170.65,3.0]
[1641294373515,49.6388023,170.66,170.62,0.66156582]
[1641294373815,49.6388023,170.71,170.65,0.66156582]
[1641294374019,49.6388023,170.71,170.65,6.582e-05]
[1641294374217,49.6388023,170.71,170.57,5.85823081]
[1641294374515,3.30761702,170.7,170.57,5.85823081]
[1641294374718,27.66479,170.6,170.57,5.85823081]
[1641294374918,27.66479,170.6,170.58,3.0]
[1641294375325,49.6388023,170.7,170.57,5.85823081]
[1641294375521,49.6388023,170.7,170.6,3.0]
[1641294375819,49.6388023,170.68,170.6,3.0]
[1641294376018,49.6388023,170.68,170.61,0.6615134]
[1641294376619,27.66479,170.65,170.61,0.6615134]
[1641294376818,27.66479,170.65,170.61,3.6615134]
[1641294377023,27.66479,170.65,170.61,0.6615134]
[1641294377425,27.66479,170.65,170.6,0.6615134]
[1641294378020,3.30782982,170.64,170.58,0.6615134]
[1641294378420,27.66479,170.65,170.58,0.6615134]
[1641294378620,27.66479,170.61,170.58,0.6615134]
[1641294380322,27.66479,170.61,170.57,0.6615134]
[1641294380722,27.66479,170.58,170.51,3.0]
[1641294380924,34.36379,170.58,170.51,3.0]
[1641294381321,34.36379,170.58,170.5,5.86046239]
[1641294381522,6.699,170.58,170.54,3.0]
[1641294381722,6.699,170.58,170.55,3.0]
[1641294381922,64.5761,170.6,170.57,3.0]
[1641294382122,27.66479,170.61,170.57,7.734]
[1641294382322,27.66479,170.61,170.57,4.734]
[1641294382523,27.66479,170.61,170.58,0.66159168]
[1641294383122,27.66479,170.61,170.52,3.0]
[1641294383322,27.66479,170.61,170.53,0.661686]
[1641294383725,27.66479,170.61,170.53,3.661686]
[1641294384124,27.66479,170.61,170.53,0.661686]
[1641294384324,42.3042367,170.6,170.54,0.661686]
[1641294384724,27.66479,170.55,170.52,0.661686]
[1641294385326,72.23619802,170.6,170.52,0.661686]
[1641294385925,63.0148,170.6,170.52,0.661686]
[1641294386128,63.0148,170.6,170.49,3.0]
[1641294386129,63.0148,170.6,170.5,0.661686]
[1641294386328,67.1668,170.6,170.5,0.661686]
[1641294386731,27.66479,170.55,170.5,0.661686]
[1641294386930,27.66479,170.55,170.49,0.661686]
[1641294387333,27.66479,170.55,170.53,3.0]
[1641294387531,27.66479,170.55,170.49,0.661686]
[1641294387733,27.66479,170.55,170.51,3.0]
[1641294387935,27.66479,170.55,170.49,0.661686]
[1641294388133,27.66479,170.55,170.52,0.661686]
[1641294388533,27.66479,170.55,170.49,0.661686]
[1641294389535,27.66479,170.55,170.49,3.661686]
[1641294389734,27.66479,170.55,170.49,0.661686]
[1641294390338,27.66479,170.55,170.51,3.0]
[1641294390541,33.08283868,170.57,170.51,3.0]
[1641294390738,60.74762868,170.57,170.53,3.0]
[1641294390939,27.66479,170.57,170.53,5.85960389]
[1641294391139,27.66479,170.57,170.54,3.661686]
[1641294391338,33.08283868,170.58,170.54,3.661686]
[1641294391538,33.08283868,170.58,170.55,0.661686]
[1641294391938,96.09763868,170.6,170.54,0.661686]
[1641294392337,96.09763868,170.6,170.52,0.661686]
[1641294392539,33.08283868,170.58,170.52,0.661686]
[1641294392739,27.66479,170.57,170.52,0.661686]
[1641294392938,27.66479,170.57,170.52,3.661686]
[1641294393140,33.08283868,170.58,170.54,3.0]
[1641294393439,9.22294427,170.56,170.54,3.0]
[1641294393640,9.22294427,170.56,170.55,0.661686]
[1641294394139,9.22294427,170.56,170.53,3.0]
[1641294394340,9.22294427,170.56,170.55,0.661686]
[1641294394740,9.22294427,170.58,170.55,0.661686]
[1641294394940,9.22294427,170.58,170.54,3.661686]
[1641294395441,9.22294427,170.58,170.55,0.661686]
[1641294397642,9.22294427,170.58,170.53,0.661686]
[1641294398042,33.08283868,170.57,170.53,0.661686]
[1641294398842,42.30578295,170.58,170.54,3.0]
[1641294399543,42.30578295,170.58,170.55,0.661686]
[1641294399842,9.22294427,170.58,170.55,0.661686]
[1641294400043,9.22294427,170.58,170.53,0.661686]
[1641294400844,9.22294427,170.58,170.53,3.661686]
[1641294401044,9.22294427,170.58,170.53,0.661686]
[1641294401343,9.22294427,170.58,170.54,0.661686]
[1641294401842,9.22294427,170.58,170.53,0.661686]
[1641294402643,9.22294427,170.58,170.53,3.661686]
[1641294403045,9.22294427,170.58,170.54,0.661686]
[1641294403447,9.22294427,170.58,170.56,3.0]
[1641294403643,11.64716285,170.58,170.54,0.661686]
[1641294404044,11.64716285,170.58,170.53,3.661686]
[1641294404244,11.64716285,170.58,170.53,0.661686]
[1641294404645,11.64716285,170.58,170.53,3.661686]
[1641294405046,11.64716285,170.58,170.54,0.661686]
[1641294405845,11.64716285,170.58,170.54,3.661686]
[1641294406048,11.64716285,170.58,170.54,0.661686]
[1641294406245,11.64716285,170.58,170.55,0.661686]
[1641294406746,11.64716285,170.58,170.53,0.661686]
[1641294407345,11.64716285,170.58,170.54,3.0]
[1641294407747,11.64716285,170.58,170.53,0.661686]
[1641294408249,11.64716285,170.58,170.55,0.661686]
[1641294408650,11.64716285,170.58,170.54,0.661686]
[1641294408850,27.66479,170.56,170.53,0.661686]
[1641294410153,11.64716285,170.55,170.53,0.661686]
[1641294413956,11.64716285,170.55,170.53,3.661686]
[1641294414254,11.64716285,170.55,170.53,0.661686]
[1641294414457,11.64716285,170.55,170.54,0.661686]
[1641294414956,11.64716285,170.55,170.53,0.661686]
[1641294416956,33.88279,170.56,170.53,0.661686]
[1641294417758,2.42464371,170.55,170.53,0.661686]
[1641294418962,30.08943371,170.55,170.53,0.661686]
[1641294420164,2.42464371,170.54,170.53,0.661686]
[1641294420962,27.66479,170.55,170.53,0.661686]
[1641294421566,2.42500526,170.54,170.53,0.661686]
[1641294421765,2.42500526,170.54,170.52,6.0]
[1641294426369,35.50784394,170.54,170.52,6.0]
[1641294427769,2.42500526,170.54,170.52,6.0]
[1641294427969,2.42500526,170.54,170.52,0.0001]
[1641294428269,35.50784394,170.54,170.52,0.0001]
[1641294428969,44.73229597,170.54,170.52,0.0001]
[1641294430874,44.73229597,170.54,170.52,3.0001]
[1641294431274,11.64945729,170.54,170.52,3.0001]
[1641294431574,11.64945729,170.54,170.53,0.66184934]
[1641294433979,11.64945729,170.54,170.52,0.0001]
[1641294435178,44.73229597,170.54,170.52,0.0001]
[1641294435577,11.64945729,170.54,170.52,0.0001]
[1641294435979,11.64945729,170.54,170.52,0.66196173]
[1641294440181,14.8044099,170.54,170.52,0.66196173]
[1641294442185,12.37940464,170.53,170.52,0.66196173]
[1641294442984,14.8044099,170.54,170.52,0.66196173]
[1641294444387,2.42500526,170.54,170.52,0.66196173]
[1641294444587,11.65429654,170.54,170.52,0.66196173]
[1641294444788,11.65429654,170.54,170.52,7.45796173]
[1641294445289,11.65429654,170.54,170.53,0.66186173]
[1641294445790,11.65429654,170.54,170.52,0.0001]
[1641294446890,11.65429654,170.54,170.52,0.66192752]
[1641294452695,11.65429654,170.54,170.52,0.0001]
[1641294453695,11.65429654,170.54,170.52,0.66192752]
[1641294453995,11.65429654,170.54,170.52,0.0001]
[1641294454397,11.65429654,170.54,170.52,0.66192752]
[1641294456199,11.65429654,170.54,170.52,0.0001]
[1641294456600,11.65429654,170.54,170.52,0.66192752]
[1641294457001,17.90529654,170.54,170.52,0.66192752]
[1641294457201,17.90529654,170.54,170.5,3.0]
[1641294457402,3.31074155,170.53,170.48,4.13574327]
[1641294457803,55.32958,170.49,170.46,4.13698588]
[1641294458403,61.83758,170.49,170.46,4.13698588]
[1641294458804,11.65429654,170.48,170.47,0.66229661]
[1641294459205,11.65429654,170.48,170.44,0.66229661]
[1641294459405,75.98839654,170.48,170.44,0.66229661]
[1641294459605,75.98839654,170.48,170.43,3.0]
[1641294459806,27.66479,170.44,170.43,3.0]
[1641294460208,34.11979,170.44,170.39,5.86424278]
[1641294460408,34.11979,170.44,170.42,3.0]
[1641294461210,2.42500526,170.43,170.42,3.0]
[1641294461809,27.66479,170.44,170.42,3.0]
[1641294462008,55.32958,170.44,170.42,3.0]
[1641294462508,2.42847014,170.43,170.42,3.0]
[1641294463209,67.74505199,170.44,170.42,3.0]
[1641294463608,67.74505199,170.44,170.41,3.0]
[1641294463809,73.94205199,170.44,170.41,3.0]
[1641294464009,14.84405007,170.43,170.41,3.0]
[1641294464410,55.32958,170.44,170.41,3.0]
[1641294464711,55.32958,170.44,170.37,3.0]
[1641294464911,61.01958,170.44,170.38,3.0]
[1641294465711,12.41809095,170.39,170.38,3.0]
[1641294465916,40.08288095,170.39,170.38,3.0]
[1641294466114,40.08288095,170.39,170.32,8.86682312]
[1641294466312,37.00221869,170.39,170.31,7.22002591]
[1641294466513,39.46891354,170.39,170.3,15.40506366]
[1641294466812,39.46891354,170.39,170.3,21.27257525]
[1641294467214,34.84448485,170.39,170.3,12.40506366]
[1641294467417,3.0,170.35,170.3,12.40506366]
[1641294467615,5.651,170.35,170.29,12.40506366]
[1641294467814,3.0,170.32,170.28,7.22002591]
[1641294468014,55.32958,170.29,170.28,7.22002591]
[1641294468214,61.02758,170.29,170.25,33.08283868]
[1641294468616,61.02758,170.29,170.25,23.94283868]
[1641294468817,61.02758,170.29,170.25,18.16283868]
[1641294469017,61.02758,170.29,170.21,5.87061172]
[1641294469218,55.32958,170.29,170.21,5.87061172]
[1641294469416,55.32958,170.29,170.2,3.0]
[1641294469817,55.32958,170.29,170.19,3.0]
[1641294470017,27.66479,170.25,170.2,3.0]
[1641294470221,27.66479,170.25,170.19,3.0]
[1641294470417,21.03594016,170.25,170.19,3.0]
[1641294471618,21.03594016,170.25,170.18,5.87164582]
[1641294472020,27.66479,170.19,170.18,5.87164582]
[1641294472819,3.0,170.24,170.18,5.87164582]
[1641294473020,21.03594016,170.25,170.14,8.87285274]
[1641294473223,3.0,170.24,170.14,5.87285274]
[1641294473424,3.0,170.23,170.12,3.0]
[1641294473624,5.219,170.24,170.14,5.8730252]
[1641294473823,21.03594016,170.25,170.14,8.8730252]
[1641294474023,27.66479,170.18,170.14,8.8730252]
[1641294474223,27.66479,170.18,170.14,5.8730252]
[1641294474724,27.66479,170.18,170.14,8.8730252]
[1641294475124,27.66479,170.18,170.15,3.66317862]
[1641294475525,27.66479,170.18,170.16,0.66317862]
[1641294476025,27.66479,170.18,170.15,0.66317862]
[1641294476926,27.66479,170.18,170.15,3.66317862]
[1641294477127,27.66479,170.18,170.15,0.66317862]
[1641294477327,27.66479,170.18,170.16,0.66317862]
[1641294478726,75.82073476,170.23,170.16,0.66317862]
[1641294479125,60.9608,170.23,170.16,0.66317862]
[1641294480827,60.9608,170.23,170.16,7.862e-05]
[1641294481029,60.9608,170.23,170.07,5.87544066]
[1641294481228,3.0,170.2,170.07,5.87544066]
[1641294481628,66.1248,170.23,170.07,5.87544066]
[1641294481829,3.0,170.2,170.07,5.87544066]
[1641294482029,27.66479,170.19,170.16,6.0]
[1641294482629,27.66479,170.19,170.17,0.66335749]
[1641294482830,27.66479,170.19,170.16,6.0]
[1641294483030,27.66479,170.19,170.1,3.0]
[1641294483233,27.66479,170.19,170.11,3.0]
[1641294483732,27.66479,170.19,170.1,3.0]
[1641294484331,27.66479,170.19,170.11,0.66325721]
[1641294484731,3.0,170.18,170.11,0.66325721]
[1641294484931,3.0,170.18,170.1,0.66325721]
[1641294485133,3.0,170.17,170.1,0.66325721]
[1641294485335,30.66479,170.19,170.08,0.66325721]
[1641294485632,62.5672,170.18,170.08,0.66325721]
[1641294486033,62.5672,170.18,170.06,3.66325721]
[1641294486233,27.66479,170.13,170.06,0.66325721]
[1641294486438,27.66479,170.13,170.07,0.66325721]
[1641294486932,27.66479,170.13,170.05,0.66325721]
[1641294488836,10.45538935,170.12,170.05,0.66325721]
[1641294489535,10.45538935,170.12,170.05,3.66325721]
[1641294489736,10.45538935,170.12,170.05,0.66325721]
[1641294489940,43.63320823,170.12,170.06,0.66325721]
[1641294490338,43.63320823,170.12,170.05,0.66325721]
[1641294490737,10.45538935,170.12,170.05,0.66325721]
[1641294491141,13.45538935,170.12,170.05,5.721e-05]
[1641294491438,69.76908935,170.12,170.05,5.721e-05]
[1641294491641,69.76908935,170.12,170.02,4.428]
[1641294491839,33.17781888,170.1,170.02,4.428]
[1641294492440,27.66479,170.06,169.98,3.0]
[1641294492640,27.66479,170.06,170.03,0.66374657]
[1641294493041,27.66479,170.06,169.99,0.66374657]
[1641294493442,21.66479,170.06,169.98,0.66374657]
[1641294493740,21.66479,170.06,169.98,3.66374657]
[1641294493940,21.66479,170.06,169.98,0.66374657]
[1641294494540,87.40469,170.06,169.98,0.66374657]
[1641294494742,87.40469,170.06,170.0,3.0]
[1641294494940,87.40469,170.06,170.0,9.251]
[1641294495142,87.40469,170.06,170.01,0.66374657]
[1641294495342,21.66479,170.06,170.01,3.66374657]
[1641294495541,21.66479,170.06,170.01,0.66374657]
[1641294495741,21.66479,170.06,170.01,3.66374657]
[1641294495942,21.66479,170.06,170.01,0.66374657]
[1641294496441,21.66479,170.06,170.01,3.66374657]
[1641294496643,19.18537437,170.17,170.05,3.0]
[1641294496841,59.9513,170.16,170.05,5.951]
[1641294497042,59.9513,170.16,170.05,8.951]
[1641294497446,3.31787085,170.15,170.06,0.66374657]
[1641294498043,3.31787085,170.15,170.06,3.66374657]
[1641294498443,27.66479,170.14,170.06,9.66374657]
[1641294498643,27.66479,170.14,170.07,0.66374657]
[1641294498943,27.66479,170.16,170.09,3.0]
[1641294499244,27.66479,170.16,170.09,9.207]
[1641294499443,3.31743213,170.15,170.1,0.66374657]
[1641294499643,3.31743213,170.15,170.11,3.0]
[1641294499843,12.24275162,170.21,170.11,3.0]
[1641294500245,3.31715401,170.2,170.12,0.66374657]
[1641294500443,27.66479,170.17,170.12,0.66374657]
[1641294501246,3.31715401,170.16,170.11,0.66374657]
[1641294501647,12.24275162,170.23,170.14,5.87285274]
[1641294501849,12.24275162,170.23,170.16,3.0]
[1641294502049,12.24275162,170.23,170.14,14.83585274]
[1641294502248,12.24275162,170.23,170.14,11.83585274]
[1641294502448,27.66479,170.21,170.17,0.66374657]
[1641294502849,27.66479,170.21,170.15,3.66374657]
[1641294503149,27.66479,170.21,170.15,0.66374657]
[1641294503349,27.66479,170.21,170.16,0.66374657]
[1641294503751,3.31664201,170.2,170.14,0.66374657]
[1641294503952,3.31664201,170.2,170.14,3.66374657]
[1641294504152,3.31664201,170.23,170.15,3.0]
[1641294504354,3.31664201,170.23,170.15,6.298]
[1641294504551,3.31664201,170.23,170.16,0.66374657]
[1641294504751,3.31664201,170.23,170.17,3.0]
[1641294505152,3.31664201,170.23,170.18,3.0]
[1641294505452,3.31664201,170.23,170.19,3.0]
[1641294505653,3.31664201,170.23,170.19,8.76774657]
[1641294505852,3.31664201,170.23,170.19,5.76774657]
[1641294506053,3.31664201,170.27,170.2,0.66374657]
[1641294508155,3.31664201,170.27,170.2,3.66374657]
[1641294508356,3.31664201,170.27,170.2,0.66374657]
[1641294508556,3.31664201,170.27,170.21,0.66374657]
[1641294508956,33.17781888,170.24,170.21,0.66374657]
[1641294509156,33.17781888,170.24,170.21,3.66374657]
[1641294509358,33.17781888,170.24,170.21,0.66374657]
[1641294509561,33.17781888,170.24,170.22,0.66374657]
[1641294510561,33.17781888,170.24,170.21,0.66374657]
[1641294512066,33.17781888,170.24,170.2,0.66374657]
[1641294512463,33.17781888,170.23,170.2,0.66374657]
[1641294512864,33.17781888,170.23,170.18,0.66374657]
[1641294513167,33.17781888,170.23,170.19,3.0]
[1641294513365,33.17781888,170.23,170.18,3.66374657]
[1641294513566,33.17781888,170.22,170.18,3.66374657]
[1641294513767,33.17781888,170.22,170.19,0.66374657]
[1641294514367,33.17781888,170.23,170.19,0.66374657]
[1641294514766,33.17781888,170.23,170.18,0.66374657]
[1641294515167,33.17781888,170.23,170.17,0.66374657]
[1641294515568,33.17781888,170.23,170.2,6.0]
[1641294515969,33.17781888,170.23,170.21,0.66374657]
[1641294516270,2.88094329,170.23,170.21,0.66374657]
[1641294516469,28.1863379,170.23,170.21,0.66374657]
[1641294516671,27.66479,170.22,170.21,0.66374657]
[1641294517672,40.99134082,170.22,170.21,0.66374657]
[1641294520677,40.99134082,170.22,170.16,5.87233543]
[1641294522079,12.43587645,170.17,170.16,5.87233543]
[1641294523779,33.1623372,170.2,170.16,5.87233543]
[1641294525481,33.1623372,170.2,170.12,37.68381531]
[1641294525881,33.1623372,170.2,170.12,10.01902531]
[1641294526382,12.43707207,170.15,170.12,5.87354263]
[1641294529283,13.32655082,170.17,170.12,10.01902531]
[1641294529284,12.43707207,170.16,170.12,10.01902531]
[1641294531289,12.43707207,170.16,170.12,5.87354263]
[1641294532391,12.43707207,170.16,170.12,10.01925755]
[1641294533091,12.43707207,170.15,170.12,5.87354263]
[1641294534490,13.32655082,170.17,170.12,5.87354263]
[1641294535190,12.43722558,170.16,170.12,11.81254263]
[1641294535989,12.43722558,170.16,170.12,15.95824583]
[1641294536890,13.32655082,170.17,170.12,15.95824583]
[1641294536891,12.43722558,170.15,170.12,11.81254263]
[1641294537293,12.43722558,170.15,170.13,0.66331258]
[1641294537493,13.32655082,170.17,170.13,0.66331258]
[1641294538393,13.32655082,170.17,170.11,4.1457452]
[1641294538394,12.4372356,170.15,170.11,4.1457452]
[1641294538598,12.4372356,170.15,170.09,27.66479]
[1641294539397,12.4372356,170.15,170.11,5.87388763]
[1641294539597,4.14573301,170.12,170.11,10.01962064]
[1641294540397,4.14573301,170.12,170.11,11.29229553]
[1641294541397,12.4372356,170.15,170.11,11.29229553]
[1641294542297,12.4372356,170.15,170.11,10.01962064]
[1641294543599,12.4372356,170.15,170.11,13.01962064]
[1641294543799,12.4372356,170.15,170.11,17.79162064]
[1641294545300,12.4372356,170.15,170.12,27.66479]
[1641294545499,12.4372356,170.15,170.12,30.66479]
[1641294546603,12.4372356,170.15,170.12,27.66479]
[1641294547002,12.4372356,170.15,170.11,19.01962064]
[1641294547202,12.4372356,170.15,170.11,16.01962064]
[1641294549013,13.32655082,170.17,170.11,11.87388763]
[1641294549014,12.4372356,170.14,170.11,11.87388763]
[1641294549608,12.4372356,170.13,170.11,11.87388763]
[1641294549809,12.4372356,170.13,170.05,39.90754162]
[1641294550207,3.0,170.13,170.05,39.90754162]
[1641294550410,3.0,170.13,170.05,27.66479]
[1641294550607,63.854,170.13,170.05,27.66479]
[1641294551108,63.854,170.13,170.02,31.81249738]
[1641294551308,27.66479,170.08,170.02,31.81249738]
[1641294551811,12.44408476,170.06,170.02,31.81249738]
[1641294555113,12.44408476,170.06,170.03,0.66350543]
[1641294555514,12.44408476,170.05,170.03,0.66350543]
[1641294556917,12.44408476,170.04,170.03,0.66350543]
[1641294558216,12.44408476,170.04,170.03,3.66350543]
[1641294558418,12.44408476,170.06,170.03,3.66350543]
[1641294558618,12.44408476,170.06,170.03,8.21650543]
[1641294559018,12.44408476,170.06,170.04,0.66350543]
[1641294559420,12.44408476,170.07,170.04,0.66350543]
[1641294560723,12.44408476,170.07,170.05,3.0]
[1641294560922,12.44408476,170.07,170.05,8.0]
[1641294561423,12.44408476,170.07,170.06,28.32829543]
[1641294561622,33.18422604,170.1,170.06,33.81829543]
[1641294562221,33.18422604,170.1,170.07,0.66350543]
[1641294562421,46.51077686,170.11,170.07,0.66350543]
[1641294571435,46.51077686,170.11,170.04,0.66350543]
[1641294571835,27.66479,170.09,170.04,0.66350543]
[1641294572537,27.66479,170.09,170.03,0.66350543]
[1641294572939,27.66479,170.09,170.05,0.66350543]
[1641294573238,2.88094329,170.08,170.04,0.66350543]
[1641294573437,13.32655082,170.08,170.04,0.66350543]
[1641294573637,13.32655082,170.08,170.03,0.66350543]
[1641294573839,13.32655082,170.08,170.04,27.66479]
[1641294574038,13.32655082,170.08,170.04,33.49379]
[1641294574338,33.18422604,170.1,170.04,33.49379]
[1641294574539,33.18422604,170.1,170.05,0.66350543]
[1641294575745,33.18422604,170.1,170.05,3.66350543]
[1641294575943,33.18422604,170.1,170.05,0.66350543]
[1641294576142,33.18422604,170.1,170.05,3.66350543]
[1641294576943,33.18422604,170.1,170.06,0.66350543]
[1641294577147,12.43917227,170.07,170.06,0.66350543]
[1641294578146,12.43917227,170.07,170.06,3.66350543]
[1641294578850,46.51077686,170.11,170.06,9.5391187]
[1641294579048,46.51077686,170.11,170.1,3.0]
[1641294579251,33.18422604,170.13,170.1,8.416]
[1641294579448,33.18422604,170.13,170.12,3.0]
[1641294579649,33.18422604,170.13,170.11,3.0]
[1641294579850,33.18422604,170.13,170.12,55.32958]
[1641294580049,25.3964468,170.14,170.12,58.99308543]
[1641294580251,25.0585468,170.14,170.13,3.0]
[1641294580451,25.0585468,170.14,170.13,11.66350543]
[1641294580650,14.95083927,170.14,170.13,11.66350543]
[1641294580850,49.6388023,170.18,170.13,11.66350543]
[1641294581050,24.83535801,170.19,170.17,3.0]
[1641294581253,24.83535801,170.19,170.18,3.0]
[1641294581650,24.83535801,170.19,170.18,11.0]
[1641294581849,24.83535801,170.19,170.18,36.32829543]
[1641294582450,49.6388023,170.22,170.18,42.98929543]
[1641294582651,4.1433285,170.23,170.18,44.87742366]
[1641294582850,4.1433285,170.23,170.18,10.55163366]
[1641294583050,4.1433285,170.23,170.19,0.66350543]
[1641294583651,3.0,170.25,170.19,0.66350543]
[1641294583854,27.66479,170.22,170.19,0.66350543]